bitfinex/quotes_ETHUSD_20250623
["timestamp","ask_amount","ask_price","bid_price","bid_amount"]
[1750718430771,30.0,2406.3,2405.4,6.30702453]
[1750718431171,10.0,2406.4,2405.5,4.15712735]
[1750718431604,10.0,2406.6,2405.4,2.14979857]
[1750718431900,10.0,2406.4,2405.4,6.30710418]
[1750718432101,10.0,2406.6,2405.5,0.63071042]
[1750718432399,10.0,2406.4,2405.4,6.30703054]
[1750718432702,10.0,2406.6,2405.4,6.30702703]
[1750718432893,10.0,2406.6,2405.7,4.15674253]
[1750718433092,30.0,2406.6,2405.7,4.15674253]
[1750718433296,10.0,2406.5,2405.7,4.15674253]
[1750718433593,10.0,2406.6,2405.8,4.57226722]
[1750718433972,30.0,2406.8,2405.9,1.6552]
[1750718434175,0.04,2406.9,2406.1,0.55]
[1750718434389,0.04,2406.9,2406.5,4.15527333]
[1750718434627,0.04,2406.9,2406.3,1.539]
[1750718435194,10.4094,2406.9,2405.7,9.992]
[1750718435393,30.0,2406.8,2405.8,4.1565278]
[1750718435595,30.0,2406.6,2405.7,14.59558877]
[1750718435796,30.0,2406.6,2405.7,10.43884253]
[1750718436782,10.0,2406.6,2405.7,0.44684253]
[1750718436982,10.0,2406.4,2405.8,1.5971]
[1750718437182,10.0,2406.6,2405.8,1.5971]
[1750718437379,10.0,2406.8,2405.8,1.5971]
[1750718437623,10.0,2406.6,2405.8,1.5971]
[1750718437825,10.0,2406.8,2405.8,1.5971]
[1750718438027,30.0,2406.5,2405.8,1.5971]
[1750718438233,9.911,2406.9,2405.8,5.75371757]
[1750718438234,10.0,2406.8,2405.8,5.75371757]
[1750718438435,0.04,2406.9,2405.8,6.42216831]
[1750718438644,0.04,2406.9,2406.0,1.5282]
[1750718438925,10.0,2406.7,2406.0,1.5282]
[1750718439124,10.0,2406.7,2405.2,1.5282]
[1750718439125,30.0,2406.0,2405.2,1.5282]
[1750718439339,10.0,2405.5,2405.2,1.5282]
[1750718439516,10.0,2405.8,2405.2,1.5282]
[1750718439685,30.0,2405.7,2405.2,1.5282]
[1750718440404,10.0,2405.8,2405.2,1.5282]
[1750718440997,10.0,2405.6,2405.0,4.15791397]
[1750718441199,10.0,2405.8,2404.7,1.5109]
[1750718441624,9.841,2405.9,2404.7,1.5109]
[1750718441785,10.0,2405.8,2404.7,1.5109]
[1750718441990,10.0,2405.8,2404.8,4.15834996]
[1750718442292,10.0,2405.8,2404.7,1.5109]
[1750718442635,9.837,2405.8,2404.9,4.15810145]
[1750718442789,10.0,2405.7,2404.9,0.56690014]
[1750718442995,10.0,2405.7,2404.7,1.5109]
[1750718443191,10.0,2405.7,2404.7,5.6693219]
[1750718443406,10.0,2405.7,2404.8,4.15834747]
[1750718443787,10.0,2405.7,2404.9,4.15815276]
[1750718444026,9.83,2406.0,2405.0,4.15790329]
[1750718444327,10.0,2405.9,2405.0,4.98951783]
[1750718444527,10.0,2405.9,2405.0,0.83161454]
[1750718444888,10.0,2405.9,2405.0,4.98961821]
[1750718445088,10.0,2405.9,2404.9,4.15813717]
[1750718445292,10.0,2405.9,2405.0,4.15792411]
[1750718445610,10.0,2405.7,2404.9,4.15809205]
[1750718445807,10.0,2405.8,2405.0,4.15799558]
[1750718446124,10.0,2405.7,2404.9,4.15811763]
[1750718446311,10.0,2405.7,2405.0,4.15798442]
[1750718446512,10.0,2405.9,2405.0,4.15798442]
[1750718446887,10.0,2405.7,2405.1,4.15781509]
[1750718447093,10.0,2405.9,2405.2,1.644]
[1750718447510,10.0,2405.7,2405.2,1.644]
[1750718447800,10.0,2405.9,2405.2,1.644]
[1750718448001,10.0,2405.7,2405.2,1.644]
[1750718448433,10.0,2405.9,2405.2,1.644]
[1750718448633,10.0,2405.5,2404.8,1.644]
[1750718448931,30.0,2405.2,2404.8,1.644]
[1750718449141,9.808,2405.2,2404.8,1.644]
[1750718449952,10.0,2405.0,2404.8,1.644]
[1750718450154,10.0,2405.1,2404.4,1.644]
[1750718450525,10.0,2404.9,2404.1,0.04]
[1750718450724,30.0,2404.6,2404.2,1.644]
[1750718450969,30.0,2404.6,2404.1,0.04]
[1750718450970,30.0,2404.4,2404.1,0.04]
[1750718451113,44.15938773,2404.2,2404.1,0.04]
[1750718451627,54.50438773,2404.2,2404.1,0.04]
[1750718452223,50.345,2404.2,2404.1,0.04]
[1750718452413,40.55,2404.2,2404.1,0.04]
[1750718452614,50.34,2404.2,2404.1,0.04]
[1750718452938,10.0,2404.2,2404.1,0.04]
[1750718453139,40.0,2404.2,2404.1,0.04]
[1750718454055,0.4984,2405.3,2404.1,0.04]
[1750718454213,39.785,2405.2,2404.3,4.15906718]
[1750718454414,30.0,2405.1,2404.3,0.9922912]
[1750718454618,30.0,2405.8,2404.2,5.3994]
[1750718454819,30.0,2405.6,2404.2,5.3994]
[1750718455049,30.0,2405.6,2404.9,1.5644]
[1750718455050,10.0,2405.5,2404.9,1.5644]
[1750718455245,30.0,2405.5,2404.9,1.5644]
[1750718455573,9.783,2405.7,2404.9,1.5644]
[1750718455789,30.0,2405.6,2404.9,1.5644]
[1750718455945,10.0,2405.5,2404.9,1.5644]
[1750718456278,30.0,2405.5,2404.9,1.5644]
[1750718456933,30.0,2405.2,2404.5,1.6188]
[1750718457270,10.0,2405.0,2404.5,1.6188]
[1750718457428,9.772,2404.9,2404.5,1.6188]
[1750718458157,9.77,2405.1,2404.5,6.35545851]
[1750718458463,9.77,2405.1,2404.5,2.19659274]
[1750718458662,10.0,2405.0,2404.5,2.19659274]
[1750718459078,30.0,2404.9,2404.5,1.6188]
[1750718459592,10.0,2405.0,2404.1,0.04]
[1750718459593,10.0,2404.4,2404.1,0.04]
[1750718459767,4.2334,2405.0,2404.1,0.04]
[1750718459768,10.0,2404.2,2404.1,0.04]
[1750718459959,19.759,2404.2,2404.1,0.04]
[1750718460460,49.759,2404.2,2404.1,0.04]
[1750718461879,58.70278773,2404.2,2404.1,0.04]
[1750718462073,40.4984,2404.2,2404.1,0.04]
[1750718462285,53.749,2404.2,2404.1,0.04]
[1750718462787,63.32278773,2404.2,2404.1,0.04]
[1750718462992,59.32278773,2404.2,2404.1,0.04]
[1750718463295,59.93041631,2404.2,2404.1,0.04]
[1750718463827,44.71007987,2403.8,2403.7,3e-08]
[1750718464100,67.70092259,2403.8,2403.7,3e-08]
[1750718464257,65.61710158,2403.8,2403.7,3e-08]
[1750718464589,65.61710158,2403.8,2402.2,1.502]
[1750718464590,34.16285072,2402.2,2400.8,1.5306]
[1750718464758,40.60762858,2402.2,2400.1,0.04]
[1750718465099,10.0,2402.2,2401.7,1.5306]
[1750718465379,19.736,2402.2,2401.7,1.5306]
[1750718466264,49.736,2402.2,2401.7,1.5306]
[1750718466471,57.63585072,2402.2,2401.2,1.5593]
[1750718466841,58.18585072,2402.2,2401.2,1.5593]
[1750718467077,58.64425072,2402.2,2401.1,0.04]
[1750718467363,28.63525072,2402.2,2401.1,0.04]
[1750718467542,14.71302402,2402.1,2401.1,0.04]
[1750718467746,30.0,2401.3,2401.1,0.04]
[1750718467969,9.998,2402.1,2401.1,0.04]
[1750718468248,30.0,2402.1,2401.2,4.16458437]
[1750718468469,30.0,2402.4,2401.7,4.163615]
[1750718468681,30.0,2402.4,2401.5,4.16406412]
[1750718468682,19.725,2402.4,2401.5,4.16406412]
[1750718468896,30.0,2403.0,2402.0,4.16305285]
[1750718469097,30.0,2402.8,2402.1,1.5551]
[1750718469284,9.722,2402.7,2402.1,1.5551]
[1750718469485,0.26908326,2403.1,2402.4,4.16240445]
[1750718469701,30.0,2402.9,2402.1,2.12692488]
[1750718469902,0.26908326,2403.1,2401.7,1.5551]
[1750718469903,30.0,2402.7,2401.7,1.5551]
[1750718470108,10.0,2402.4,2401.7,1.5551]
[1750718470426,10.0,2402.2,2401.7,1.5551]
[1750718470721,30.0,2402.0,2401.7,1.5551]
[1750718470864,10.0,2402.0,2401.7,1.5551]
[1750718471063,9.715,2401.9,2401.3,1.5551]
[1750718471280,10.0,2401.7,2401.3,1.5551]
[1750718471483,10.0,2401.3,2401.1,0.04]
[1750718471826,9.712,2401.3,2401.1,0.04]
[1750718472499,10.0,2401.2,2401.1,0.04]
[1750718472910,10.0,2401.2,2400.1,0.04]
[1750718472911,2.06719356,2401.1,2400.1,0.04]
[1750718473206,44.71631947,2400.2,2400.1,0.04]
[1750718473397,58.73638751,2400.2,2400.1,0.04]
[1750718473598,58.73638751,2400.2,2398.3,1.6282]
[1750718473599,4.16805601,2399.2,2398.3,1.6282]
[1750718473805,49.702,2399.2,2398.3,1.6282]
[1750718474216,19.703,2399.8,2398.1,3.78]
[1750718474381,19.703,2399.8,2399.2,1.6282]
[1750718474579,4.1367,2400.4,2399.2,1.6282]
[1750718474580,9.702,2400.0,2399.2,1.6282]
[1750718474796,10.0,2400.0,2399.2,5.7961138]
[1750718474999,10.0,2400.0,2399.3,4.75143995]
[1750718475245,9.7,2400.1,2399.3,0.58361138]
[1750718475389,10.0,2400.7,2399.6,4.1672385]
[1750718475735,10.0,2400.5,2399.7,1.6626]
[1750718475938,39.696,2400.4,2399.7,1.6626]
[1750718476099,9.696,2400.5,2399.7,1.6626]
[1750718476301,30.0,2400.5,2399.7,1.6626]
[1750718476719,13.86068279,2400.6,2399.7,1.6626]
[1750718476720,10.0,2400.2,2399.7,1.6626]
[1750718476931,10.03743697,2400.1,2399.7,1.6626]
[1750718477332,0.34443697,2400.0,2399.7,1.6626]
[1750718479026,10.008,2401.8,2399.7,1.6626]
[1750718479027,9.686,2400.7,2399.7,1.6626]
[1750718479328,30.0,2400.6,2399.7,1.6626]
[1750718479532,3.741,2401.4,2399.7,5.82968569]
[1750718479733,39.682,2401.3,2400.5,4.16570064]
[1750718479932,30.0,2401.2,2400.1,1.6201]
[1750718480131,30.0,2401.2,2400.2,4.16630482]
[1750718480317,10.0,2401.1,2400.1,1.6201]
[1750718480517,10.0,2401.2,2400.1,1.6201]
[1750718480695,30.0,2401.1,2400.1,1.6201]
[1750718481031,10.0,2401.2,2400.1,1.6201]
[1750718481227,10.0,2400.8,2400.1,1.6201]
[1750718481433,40.0,2400.6,2400.1,1.6201]
[1750718481635,10.0,2400.6,2400.1,1.6201]
[1750718481930,4.71406986,2401.5,2400.1,1.6201]
[1750718481931,10.0,2401.1,2400.1,5.7865677]
[1750718482134,30.0,2401.0,2400.2,0.57865677]
[1750718482431,30.0,2401.0,2400.1,1.6201]
[1750718482743,30.0,2401.0,2398.8,10.0]
[1750718482744,10.0,2400.5,2399.3,5.82664787]
[1750718482945,0.741,2400.8,2399.2,7.90899883]
[1750718483095,10.0,2400.8,2399.7,1.5675]
[1750718483298,30.0,2400.7,2399.8,1.5675]
[1750718483493,10.0,2400.7,2399.8,1.5675]
[1750718483809,4.90905601,2399.2,2399.1,0.04]
[1750718483995,11.291,2399.2,2399.1,0.04]
[1750718484190,40.741,2399.2,2399.1,0.04]
[1750718484432,50.957,2399.2,2399.1,0.04]
[1750718485134,40.741,2399.2,2399.1,0.04]
[1750718485356,49.661,2399.2,2399.1,0.04]
[1750718486398,19.661,2399.2,2399.1,0.04]
[1750718487639,0.741,2400.8,2399.1,1.6971]
[1750718487864,4.16660465,2400.1,2399.1,1.6971]
[1750718488025,10.0,2399.7,2399.1,1.6971]
[1750718488229,30.0,2399.8,2399.1,1.6971]
[1750718488412,10.0,2399.5,2399.1,1.6971]
[1750718488745,10.0,2399.9,2399.1,1.6971]
[1750718488963,30.0,2399.8,2399.1,2.28363331]
[1750718489110,9.654,2400.0,2399.1,5.86528882]
[1750718489311,10.0,2399.9,2399.1,1.6971]
[1750718489626,10.0,2399.7,2399.1,1.6971]
[1750718489966,30.0,2400.4,2399.4,4.16766014]
[1750718490257,30.0,2400.4,2399.5,5.77542203]
[1750718490460,9.649,2400.5,2399.5,1.608]
[1750718490943,30.0,2400.4,2399.5,1.608]
[1750718491344,10.0,2400.3,2399.5,1.608]
[1750718491569,30.0,2400.2,2399.5,1.608]
[1750718491707,10.0,2400.0,2399.5,1.608]
[1750718491910,9.64,2400.4,2399.6,4.16729188]
[1750718492145,10.0,2400.3,2399.7,0.57752919]
[1750718492874,9.64,2400.4,2399.5,1.608]
[1750718493031,9.636,2400.5,2399.7,4.16703388]
[1750718493226,9.636,2400.5,2399.6,4.16736122]
[1750718493227,9.636,2400.5,2399.8,4.16698376]
[1750718493459,9.636,2400.5,2399.5,1.608]
[1750718493665,9.636,2400.5,2399.8,4.16700347]
[1750718493829,9.636,2400.5,2399.9,0.41670035]
[1750718494166,10.0,2400.4,2399.5,1.608]
[1750718494350,9.636,2400.5,2399.5,1.608]
[1750718494351,30.0,2400.1,2399.5,1.608]
[1750718494668,19.636,2400.5,2399.5,1.608]
[1750718494669,10.0,2400.3,2399.5,1.608]
[1750718494831,9.628,2400.1,2399.5,1.608]
[1750718495027,30.0,2399.9,2399.5,1.608]
[1750718495441,30.0,2399.9,2399.1,1.6412]
[1750718495637,30.0,2399.5,2399.1,0.04]
[1750718495841,10.0,2399.6,2399.1,0.04]
[1750718495842,9.624,2399.4,2399.1,0.04]
[1750718496854,10.0,2399.3,2399.1,0.04]
[1750718497223,40.0,2399.2,2399.1,0.04]
[1750718497427,10.0,2399.2,2399.1,0.04]
[1750718497673,9.624,2399.4,2399.1,1.5896]
[1750718497857,3.643,2400.3,2399.1,1.5896]
[1750718497858,9.616,2399.7,2399.1,1.5896]
[1750718498830,9.616,2399.7,2399.3,4.16783262]
[1750718499026,10.0,2399.8,2399.1,6.33351868]
[1750718499226,10.0,2399.7,2399.1,6.33359531]
[1750718499477,10.0,2399.8,2399.2,4.16790162]
[1750718499763,10.0,2399.8,2399.1,1.5896]
[1750718499965,10.0,2399.8,2399.1,5.75773701]
[1750718500262,10.0,2399.8,2399.1,1.5896]
[1750718500465,10.0,2399.8,2399.2,4.16789759]
[1750718500776,3.643,2400.5,2399.1,6.75042865]
[1750718500777,10.0,2400.2,2399.1,6.75042865]
[1750718500945,9.606,2400.2,2399.6,4.16724631]
[1750718501295,9.606,2400.2,2399.1,6.75042865]
[1750718501296,9.606,2400.2,2399.1,6.75040441]
[1750718501585,10.0,2400.1,2399.1,1.5896]
[1750718501736,10.0,2399.9,2399.1,1.5896]
[1750718501940,30.0,2399.7,2399.1,1.5896]
[1750718502180,30.0,2400.4,2399.1,1.5896]
[1750718502484,19.6,2400.3,2399.5,4.16744929]
[1750718502635,10.0,2400.1,2399.1,1.5896]
[1750718502844,10.0,2399.7,2399.1,1.5896]
[1750718503051,30.55,2399.4,2399.1,0.04]
[1750718503263,40.0,2399.2,2399.1,0.04]
[1750718503492,49.595,2399.2,2399.1,0.04]
[1750718504071,40.0,2399.2,2399.1,0.04]
[1750718505592,10.0,2399.2,2399.1,0.04]
[1750718506685,19.586,2399.2,2399.1,0.04]
[1750718507881,49.586,2399.2,2399.1,0.04]
[1750718508084,19.578,2399.2,2399.1,0.04]
[1750718508750,10.0,2399.2,2399.1,0.04]
[1750718509980,40.0,2399.2,2399.1,0.04]
[1750718510153,10.0,2399.2,2399.1,0.04]
[1750718510574,40.0,2399.2,2399.1,0.04]
[1750718511001,10.0,2399.2,2399.1,0.04]
[1750718512477,30.0,2400.0,2399.1,0.04]
[1750718512678,10.0,2399.7,2399.2,5.69414132]
[1750718512914,0.741,2400.2,2399.2,2.5164513]
[1750718513218,9.558,2400.1,2399.4,4.16765685]
[1750718513379,3.644,2400.5,2399.2,1.5262]
[1750718513579,30.0,2400.2,2399.4,4.16768286]
[1750718513918,10.0,2400.2,2399.5,4.16743577]
[1750718514484,10.0,2400.2,2399.4,4.16763078]
[1750718514675,9.551,2400.1,2399.5,4.16748696]
[1750718515179,9.551,2400.1,2399.5,4.16737352]
[1750718515517,10.0,2400.4,2399.7,4.16716518]
[1750718515715,4.16484505,2401.1,2399.4,0.98617131]
[1750718515716,9.547,2400.3,2399.8,1.5259]
[1750718516018,9.546,2400.3,2399.8,1.5259]
[1750718516184,30.0,2400.9,2400.1,4.16640949]
[1750718516379,10.757,2401.4,2400.3,4.16598555]
[1750718516580,30.0,2401.3,2400.0,4.16665186]
[1750718516886,10.757,2401.4,2400.0,4.16665186]
[1750718516887,9.542,2401.2,2400.0,4.16665186]
[1750718517105,30.0,2401.1,2400.0,4.16665186]
[1750718517418,30.0,2401.1,2399.9,1.5259]
[1750718517620,10.0,2401.0,2399.9,1.5259]
[1750718517785,30.0,2400.7,2399.9,1.5259]
[1750718518001,9.537,2400.6,2399.9,1.5259]
[1750718518332,40.0,2400.5,2399.9,1.5259]
[1750718518540,39.534,2400.4,2399.4,1.6223]
[1750718518706,10.0,2400.2,2399.5,4.74533843]
[1750718518907,10.0,2400.2,2399.5,4.74535877]
[1750718519413,10.0,2400.2,2399.5,0.57790333]
[1750718519611,9.534,2400.4,2399.8,4.16694886]
[1750718520120,9.534,2400.4,2399.9,4.16672762]
[1750718520319,9.534,2400.4,2399.4,5.78996114]
[1750718520522,9.534,2400.4,2399.6,4.16725243]
[1750718520842,10.0,2400.2,2399.4,1.6223]
[1750718521217,10.0,2400.2,2399.5,4.16749133]
[1750718521410,10.0,2400.2,2399.5,4.1674002]
[1750718521936,10.0,2400.2,2399.4,6.36894343]
[1750718522095,10.0,2400.7,2399.8,4.16692172]
[1750718522296,40.0,2400.5,2399.4,2.20131409]
[1750718522532,30.0,2400.4,2399.4,2.20131409]
[1750718522737,30.0,2400.4,2399.4,1.6223]
[1750718522738,10.741,2400.3,2399.4,1.6223]
[1750718523039,10.0,2399.7,2399.1,3.595]
[1750718523226,10.0,2399.4,2399.1,0.04]
[1750718523532,9.513,2399.3,2399.1,0.04]
[1750718523904,19.51,2399.8,2399.2,5.81292145]
[1750718524202,9.51,2400.0,2399.5,4.16749987]
[1750718524420,9.51,2400.3,2399.3,0.58529215]
[1750718524739,9.51,2400.3,2399.8,4.16692126]
[1750718525039,0.741,2400.9,2399.5,1.6449]
[1750718525040,9.507,2400.6,2400.0,4.16657894]
[1750718525337,9.507,2400.6,2399.9,4.16675169]
[1750718525533,9.507,2400.6,2399.9,5.00013997]
[1750718526033,9.507,2400.6,2399.9,5.00014089]
[1750718526537,9.507,2400.6,2399.9,5.00014289]
[1750718526849,30.0,2400.5,2399.5,1.6449]
[1750718527146,30.0,2399.6,2399.1,0.04]
[1750718527459,9.498,2399.5,2399.1,0.04]
[1750718527604,9.495,2399.5,2399.1,0.04]
[1750718528109,9.494,2399.5,2399.1,0.04]
[1750718528518,0.741,2400.0,2399.3,4.16772169]
[1750718528715,10.0,2400.0,2399.2,1.5093]
[1750718528935,10.0,2400.0,2399.3,4.16777402]
[1750718529116,10.0,2400.0,2399.2,1.5093]
[1750718529313,10.0,2400.0,2399.2,5.67733874]
[1750718529540,10.0,2400.0,2399.3,1.03063897]
[1750718529706,10.0,2400.2,2399.3,1.03063897]
[1750718530041,30.0,2399.9,2399.2,1.5093]
[1750718530212,10.0,2399.7,2399.2,1.5093]
[1750718530613,4.90650432,2400.7,2399.3,4.16778995]
[1750718530824,10.0,2400.3,2399.3,5.15630973]
[1750718531038,10.0,2400.3,2399.3,5.15639927]
[1750718531243,30.0,2400.6,2399.5,4.16743738]
[1750718531444,10.0,2400.1,2399.5,4.16743738]
[1750718531641,9.48,2400.2,2399.3,5.15638254]
[1750718531831,30.0,2400.1,2399.3,5.1563565]
[1750718532021,10.0,2400.1,2399.3,5.15638292]
[1750718532225,10.0,2400.1,2399.3,0.98851978]
[1750718532436,10.0,2400.1,2399.2,1.5093]
[1750718533025,10.0,2400.1,2399.3,4.16786199]
[1750718533235,10.0,2400.1,2399.2,5.67732013]
[1750718533435,10.0,2400.1,2399.2,5.67730453]
[1750718533748,10.0,2400.1,2399.3,4.16787267]
[1750718534342,10.0,2400.1,2399.2,1.5093]
[1750718534529,10.0,2400.1,2399.2,6.24903213]
[1750718534737,10.0,2400.1,2399.2,2.08106457]
[1750718534938,10.0,2400.1,2399.2,1.5093]
[1750718535315,10.0,2400.1,2399.3,4.16785088]
[1750718535710,10.0,2400.1,2399.2,1.5093]
[1750718535945,0.741,2400.7,2399.2,1.5093]
[1750718536146,9.459,2400.8,2400.0,1.6614]
[1750718536445,30.0,2400.9,2400.1,4.16647702]
[1750718536670,9.458,2400.7,2400.0,5.82798008]
[1750718536848,9.458,2400.7,2400.0,6.82745486]
[1750718537052,9.458,2400.7,2400.0,2.66087478]
[1750718537221,10.741,2401.0,2400.0,1.6614]
[1750718537430,9.453,2400.9,2400.1,4.16647527]
[1750718537628,9.453,2400.9,2400.0,5.82798941]
[1750718537813,30.0,2400.8,2400.0,1.6614]
[1750718538015,10.0,2400.5,2400.0,1.6614]
[1750718538338,10.0,2400.8,2400.0,6.8275117]
[1750718538747,10.0,2400.8,2400.0,2.6609113]
[1750718538970,10.0,2400.6,2400.0,1.6614]
[1750718540217,30.0,2401.3,2400.0,1.6614]
[1750718540416,10.0,2401.1,2400.5,4.16563644]
[1750718540618,9.444,2401.2,2400.5,4.16563644]
[1750718540822,9.444,2401.2,2400.5,4.58220008]
[1750718541021,0.741,2400.4,2399.1,0.04]
[1750718541222,30.0,2400.2,2399.1,1.5543]
[1750718541460,30.0,2400.2,2399.5,4.16744921]
[1750718541461,9.435,2400.1,2399.5,4.16744921]
[1750718541659,0.741,2400.4,2399.3,4.1677846]
[1750718541857,10.0,2400.2,2399.1,1.5543]
[1750718542370,30.0,2399.9,2399.1,1.5543]
[1750718542526,10.0,2399.6,2399.1,0.04]
[1750718542724,9.431,2399.6,2399.1,0.04]
[1750718542935,10.0,2399.4,2399.1,0.04]
[1750718543471,30.0,2399.3,2399.1,0.04]
[1750718543643,40.0,2399.2,2399.1,0.04]
[1750718543999,10.0,2399.2,2399.1,0.04]
[1750718544343,40.0,2399.2,2399.1,0.04]
[1750718544540,44.16805601,2399.2,2399.1,0.04]
[1750718544743,54.88205601,2399.2,2399.1,0.04]
[1750718545557,58.43505601,2399.2,2399.1,0.04]
[1750718546371,62.43505601,2399.2,2399.1,0.04]
[1750718546743,32.43505601,2399.2,2399.1,0.04]
[1750718547137,62.43505601,2399.2,2399.1,0.04]
[1750718547564,53.01505601,2399.2,2399.1,0.04]
[1750718547761,62.42905601,2399.2,2399.1,0.04]
[1750718548561,53.01505601,2399.2,2399.1,0.04]
[1750718548750,62.42605601,2399.2,2399.1,0.04]
[1750718549050,58.258,2399.2,2399.1,0.04]
[1750718549249,58.162,2399.2,2399.1,0.04]
[1750718549473,62.33005601,2399.2,2399.1,0.04]
[1750718550757,35.291,2399.2,2399.1,0.04]
[1750718550959,4.0,2399.2,2399.1,0.04]
[1750718551453,4.0,2399.2,2399.1,1.5982]
[1750718551650,4.0,2399.2,2399.1,0.04]
[1750718551651,13.398,2399.2,2399.1,0.04]
[1750718552052,23.398,2399.2,2399.1,0.04]
[1750718552286,43.398,2399.2,2399.1,0.04]
[1750718552486,9.398,2399.2,2399.1,0.04]
[1750718552774,39.398,2399.2,2399.1,0.04]
[1750718552976,54.11605601,2399.2,2399.1,0.04]
[1750718553184,54.85705601,2399.2,2399.1,0.04]
[1750718555042,30.741,2399.2,2399.1,0.04]
[1750718555244,49.384,2399.2,2399.1,0.04]
[1750718555551,19.383,2399.2,2399.1,0.04]
[1750718555876,9.383,2399.2,2399.1,0.04]
[1750718557077,9.381,2399.2,2399.1,0.04]
[1750718557837,9.376,2399.2,2399.1,0.04]
[1750718559810,10.0,2399.3,2399.1,0.04]
[1750718559954,9.37,2399.2,2399.1,0.04]
[1750718560149,9.364,2399.2,2399.1,0.04]
[1750718561589,30.0,2400.0,2399.1,0.04]
[1750718561791,9.356,2399.9,2399.2,1.5769]
[1750718561978,10.0,2399.8,2399.2,1.5769]
[1750718562306,30.0,2400.0,2399.2,1.5769]
[1750718562506,9.354,2399.9,2399.2,1.5769]
[1750718562798,30.0,2400.5,2399.5,4.16745679]
[1750718562953,30.0,2400.3,2399.5,0.41674568]
[1750718563148,10.0,2400.3,2399.6,4.1673571]
[1750718563395,10.0,2400.3,2399.7,4.16702784]
[1750718563396,9.35,2400.3,2399.7,4.16702784]
[1750718563556,9.348,2400.4,2399.6,5.82699428]
[1750718563755,9.348,2400.4,2399.7,4.16718756]
[1750718563951,9.348,2400.4,2399.8,0.99941818]
[1750718564155,9.348,2400.4,2399.6,1.6597]
[1750718564393,9.348,2400.4,2399.7,4.16716949]
[1750718565275,9.348,2400.4,2399.6,5.82697428]
[1750718565488,9.348,2400.4,2399.7,4.16717833]
[1750718565788,10.0,2400.3,2399.6,1.6597]
[1750718565990,3.465,2400.9,2400.2,1.6597]
[1750718566194,10.0,2400.7,2400.2,1.6597]
[1750718566782,10.0,2400.5,2400.2,1.6597]
[1750718570514,9.333,2400.6,2400.2,1.6597]
[1750718570666,10.0,2400.5,2400.2,1.6597]
[1750718570866,19.314,2400.5,2400.2,1.6597]
[1750718571272,9.314,2400.5,2400.2,2.65897221]
[1750718571471,0.55,2401.2,2400.2,2.65897221]
[1750718571692,30.0,2401.2,2400.2,1.6597]
[1750718571909,30.0,2401.0,2400.2,1.6597]
[1750718572218,10.0,2400.7,2400.2,1.6597]
[1750718572518,9.309,2400.7,2400.2,1.6597]
[1750718572664,30.0,2400.4,2399.8,1.5016]
[1750718572866,40.0,2400.2,2399.2,1.5016]
[1750718573085,9.309,2400.3,2399.2,1.5016]
[1750718573086,30.0,2399.9,2399.2,1.5016]
[1750718573297,19.304,2399.8,2399.2,2.07259136]
[1750718573802,9.302,2399.7,2399.2,6.24059041]
[1750718574000,9.302,2399.7,2399.2,2.07259136]
[1750718574538,9.302,2399.7,2399.2,5.6695639]
[1750718574712,10.0,2400.4,2399.2,1.5016]
[1750718574918,10.0,2400.4,2399.3,4.16788229]
[1750718575120,10.0,2400.2,2399.3,4.16788229]
[1750718575448,10.741,2400.6,2399.4,4.1676813]
[1750718575649,10.0,2400.4,2399.5,0.83355636]
[1750718576008,10.0,2400.4,2399.6,1.6405]
[1750718576604,10.0,2400.2,2399.6,1.6405]
[1750718576939,10.0,2400.0,2399.6,1.6405]
[1750718577443,4.90905601,2399.2,2399.1,0.04]
[1750718577612,43.838,2399.2,2399.1,0.04]
[1750718577814,14.0,2399.2,2399.1,0.04]
[1750718578058,10.0,2399.2,2399.1,0.04]
[1750718578259,11.33282111,2399.9,2399.1,0.04]
[1750718578260,10.756,2399.9,2399.1,0.04]
[1750718578458,30.0,2399.7,2399.1,0.04]
[1750718578736,10.0,2399.7,2399.1,0.04]
[1750718578915,10.0,2399.5,2399.1,0.04]
[1750718579118,10.0,2399.3,2399.1,0.04]
[1750718579322,10.0,2399.5,2399.1,0.04]
[1750718579522,40.0,2399.2,2399.1,0.04]
[1750718579744,41.291,2399.2,2399.1,0.04]
[1750718579913,45.45905601,2399.2,2399.1,0.04]
[1750718580239,54.73405601,2399.2,2399.1,0.04]
[1750718581432,45.45905601,2399.2,2399.1,0.04]
[1750718581635,49.269,2399.2,2399.1,0.04]
[1750718581846,19.269,2399.2,2399.1,0.04]
[1750718582032,49.269,2399.2,2399.1,0.04]
[1750718582234,49.269,2399.2,2396.3,9.20548088]
[1750718582235,30.0,2399.0,2397.1,3.80975843]